fUST/lending_fUST_20240413
["ID","MTS","AMOUNT","RATE_DAILY","PERIOD"]
[322301264,1712943042798,-374.61535197,0.00054794,120]
[322301266,1712943042810,-500.0,0.00054794,120]
[322301268,1712943042820,-500.0,0.00054794,120]
[322301270,1712943042829,-233.5454295,0.00054794,120]
[322301272,1712943042840,-500.0,0.00054794,120]
[322301274,1712943042850,-500.0,0.00054794,120]
[322301276,1712943042861,-500.0,0.00054794,120]
[322301279,1712943042872,-500.0,0.00054794,120]
[322301280,1712943042882,-500.0,0.00054794,120]
[322301285,1712943042893,-428.44114347,0.00054794,120]
[322301288,1712943042903,-500.0,0.00054794,120]
[322301291,1712943042913,-503.14677591,0.00054794,120]
[322301293,1712943042923,-487.54079071,0.00054794,120]
[322301298,1712943042934,-500.0,0.00054794,120]
[322301301,1712943042947,-155.48973338,0.00054794,120]
[322301303,1712943042957,-500.0,0.00054794,120]
[322301304,1712943042968,-500.0,0.00054794,120]
[322301306,1712943042979,-500.0,0.00054794,120]
[322301308,1712943042992,-500.0,0.00054794,120]
[322301309,1712943043002,-481.4714267,0.00054794,120]
[322301310,1712943043012,-500.0,0.00054794,120]
[322301311,1712943043022,-507.65843774,0.00054794,120]
[322301312,1712943043033,-500.0,0.00054794,120]
[322301313,1712943043043,-500.0,0.00054794,120]
[322301318,1712943043053,-500.0,0.00054794,120]
[322301322,1712943043063,-2334.48,0.00054794,120]
[322301326,1712943043073,-1223.88,0.00054794,120]
[322301329,1712943043083,-440.23207232,0.00054794,120]
[322301332,1712943043093,-500.0,0.00054794,120]
[322301336,1712943043103,-500.0,0.00054794,120]
[322301338,1712943043113,-1875.18,0.00054794,120]
[322301341,1712943043123,-500.0,0.00054794,120]
[322301344,1712943043132,-500.0,0.00054794,120]
[322301347,1712943043142,-500.0,0.00054794,120]
[322301349,1712943043152,-500.0,0.00054794,120]
[322301353,1712943043162,-1071.24,0.00054794,120]
[322301356,1712943043172,-500.0,0.00054794,120]
[322301359,1712943043182,-500.0,0.00054794,120]
[322301361,1712943043192,-500.0,0.00054794,120]
[322301365,1712943043203,-500.0,0.00054794,120]
[322301367,1712943043213,-500.0,0.00054794,120]
[322301372,1712943043222,-1236.65,0.00054794,120]
[322301378,1712943043232,-500.0,0.00054794,120]
[322301384,1712943043242,-736.04,0.00054794,120]
[322301392,1712943043252,-500.0,0.00054794,120]
[322301399,1712943043262,-500.0,0.00054794,120]
[322301406,1712943043272,-500.0,0.00054794,120]
[322301414,1712943043282,-500.0,0.00054794,120]
[322301423,1712943043292,-253.87168708,0.00054794,120]
[322301430,1712943043303,-500.0,0.00054794,120]
[322301437,1712943043314,-823.7,0.00054794,120]
[322301441,1712943043324,-500.0,0.00054794,120]
[322301445,1712943043334,-500.0,0.00054794,120]
[322301451,1712943043346,-500.0,0.00054794,120]
[322301455,1712943043356,-500.0,0.00054794,120]
[322301460,1712943043368,-1000.0,0.00054794,7]
[322301465,1712943043379,-500.0,0.00054794,120]
[322301470,1712943043390,-1374.44,0.00054794,120]
[322301475,1712943043401,-500.0,0.00054794,120]
[322301479,1712943043412,-1051.77,0.00054794,120]
[322301482,1712943043423,-500.0,0.00054794,120]
[322301485,1712943043433,-511.86025329,0.00054794,120]
[322301488,1712943043444,-500.0,0.00054794,120]
[322301492,1712943043456,-513.4,0.00054794,120]
[322301494,1712943043466,-500.0,0.00054794,120]
[322301497,1712943043476,-500.0,0.00054794,120]
[322301500,1712943043486,-500.0,0.00054794,120]
[322301502,1712943043497,-500.0,0.00054794,120]
[322301504,1712943043506,-2373.58,0.00054794,21]
[322301505,1712943043516,-514.37035449,0.00054794,120]
[322301507,1712943043526,-500.0,0.00054794,120]
[322301509,1712943043537,-500.0,0.00054794,120]
[322301511,1712943043547,-500.0,0.00054794,120]
[322301513,1712943043557,-500.0,0.00054794,120]
[322301515,1712943043567,-500.0,0.00054794,120]
[322301517,1712943043577,-500.0,0.00054794,120]
[322301519,1712943043587,-500.0,0.00054794,120]
[322301521,1712943043597,-500.0,0.00054794,120]
[322301523,1712943043607,-3617.4,0.00054794,120]
[322301525,1712943043616,-500.0,0.00054794,120]
[322301527,1712943043626,-500.0,0.00054794,120]
[322301529,1712943043635,-193.08517013,0.00054794,120]
[322301539,1712943043720,-2158.25,0.00054794,120]
[322301541,1712943043730,-500.0,0.00054794,120]
[322301543,1712943043740,-500.0,0.00054794,120]
[322301545,1712943043752,-500.0,0.00054794,120]
[322301547,1712943043763,-781.82,0.00054794,120]
[322301549,1712943043774,-2001.96,0.00054794,120]
[322301551,1712943043784,-905.53,0.00054794,120]
[322301553,1712943043794,-500.0,0.00054794,120]
[322301555,1712943043805,-500.0,0.00054794,120]
[322301557,1712943043814,-500.0,0.00054794,120]
[322301559,1712943043825,-1904.01,0.00054794,120]
[322301561,1712943043834,-1008.13784438,0.00054794,120]
[322301563,1712943043845,-502.50360943,0.00054794,120]
[322301564,1712943043855,-500.0,0.00054794,120]
[322301566,1712943043865,-187.33083336,0.00054794,120]
[322301568,1712943043876,-500.0,0.00054794,120]
[322301570,1712943043886,-920.85,0.00054794,120]
[322301572,1712943043896,-500.0,0.00054794,120]
[322301574,1712943043907,-500.0,0.00054794,120]
[322301576,1712943043917,-500.0,0.00054794,120]
[322301579,1712943043927,-218.78523006,0.00054794,120]
[322301581,1712943043937,-500.0,0.00054794,120]
[322301582,1712943043948,-500.0,0.00054794,120]
[322301584,1712943043958,-500.0,0.00054794,120]
[322301587,1712943043969,-500.0,0.00054794,120]
[322301588,1712943043979,-611.87652153,0.00054794,120]
[322301590,1712943043990,-1828.37,0.00054794,120]
[322301592,1712943044001,-500.0,0.00054794,120]
[322301594,1712943044011,-500.0,0.00054794,120]
[322301597,1712943044023,-500.0,0.00054794,60]
[322301598,1712943044033,-500.0,0.00054794,120]
[322301600,1712943044043,-881.01,0.00054794,120]
[322301602,1712943044053,-914.42,0.00054794,120]
[322301604,1712943044065,-252.61919789,0.00054794,120]
[322301606,1712943044075,-500.0,0.00054794,120]
[322301608,1712943044084,-500.0,0.00054794,120]
[322301610,1712943044110,-500.0,0.00054794,120]
[322301611,1712943044120,-500.0,0.00054794,120]
[322301612,1712943044129,-500.0,0.00054794,20]
[322301613,1712943044138,-500.0,0.00054794,120]
[322301614,1712943044149,-1452.4,0.00054794,120]
[322301615,1712943044160,-500.0,0.00054794,120]
[322301616,1712943044170,-4993.46,0.00054794,120]
[322301617,1712943044179,-557.46006368,0.00054794,120]
[322301618,1712943044189,-500.0,0.00054794,120]
[322301619,1712943044199,-500.0,0.00054794,120]
[322301620,1712943044209,-500.0,0.00054794,120]
[322301621,1712943044218,-500.0,0.00054794,120]
[322301622,1712943044228,-519.79491341,0.00054794,120]
[322301623,1712943044237,-500.0,0.00054794,120]
[322301624,1712943044247,-532.65883253,0.00054794,120]
[322301625,1712943044257,-638.85,0.00054794,120]
[322301626,1712943044270,-500.0,0.00054794,120]
[322301627,1712943044280,-500.0,0.00054794,120]
[322301628,1712943044289,-500.0,0.00054794,120]
[322301629,1712943044299,-500.0,0.00054794,120]
[322301630,1712943044309,-1770.86,0.00054794,120]
[322301631,1712943044320,-500.0,0.00054794,120]
[322301633,1712943044330,-832.37,0.00054794,120]
[322301634,1712943044339,-500.0,0.00054794,120]
[322301636,1712943044349,-538.76934425,0.00054794,120]
[322301638,1712943044359,-500.0,0.00054794,120]
[322301640,1712943044369,-300.1343516,0.00054794,120]
[322301642,1712943044379,-500.0,0.00054794,120]
[322301644,1712943044389,-500.0,0.00054794,120]
[322301646,1712943044399,-500.0,0.00054794,120]
[322301647,1712943044409,-500.0,0.00054794,120]
[322301649,1712943044420,-392.7392275,0.00054794,120]
[322301651,1712943044430,-500.0,0.00054794,120]
[322301653,1712943044440,-500.0,0.00054794,120]
[322301655,1712943044449,-550.9,0.00054794,120]
[322301657,1712943044459,-500.0,0.00054794,120]
[322301658,1712943044468,-500.0,0.00054794,120]
[322301661,1712943044478,-500.0,0.00054794,120]
[322301662,1712943044488,-500.0,0.00054794,120]
[322301664,1712943044501,-500.0,0.00054794,120]
[322301666,1712943044511,-500.0,0.00054794,120]
[322301668,1712943044521,-1157.48,0.00054794,120]
[322301670,1712943044531,-500.0,0.00054794,120]
[322301672,1712943044541,-921.83,0.00054794,120]
[322301674,1712943044551,-500.0,0.00054794,120]
[322301676,1712943044561,-302.0,0.00054794,2]
[322301678,1712943044570,-11269.9,0.00054794,120]
[322301680,1712943044581,-500.0,0.00054794,120]
[322301682,1712943044592,-500.0,0.00054794,120]
[322301684,1712943044601,-500.0,0.00054794,120]
[322301686,1712943044610,-292.63875805,0.00054794,120]
[322301688,1712943044621,-259.92770034,0.00054794,120]
[322301689,1712943044630,-54697.93,0.00054794,120]
[322301692,1712943044640,-297.1663235,0.00054794,120]
[322301693,1712943044650,-507.03594079,0.00054794,120]
[322301695,1712943044661,-500.0,0.00054794,120]
[322301697,1712943044671,-500.0,0.00054794,120]
[322301699,1712943044681,-500.0,0.00054794,120]
[322301700,1712943044691,-500.0,0.00054794,120]
[322301702,1712943044700,-151.5096062,0.00054795,120]
[322301704,1712943044709,-151.5096062,0.00054795,120]
[322301706,1712943044719,-151.5096062,0.00054795,120]
[322301708,1712943044728,-152.0,0.00054795,120]
[322301710,1712943044737,-151.6033562,0.00054795,120]
[322301712,1712943044746,-151.6033562,0.00054795,120]
[322301713,1712943044756,-151.6033562,0.00054795,120]
[322301715,1712943044765,-151.6033562,0.00054795,120]
[322301717,1712943044780,-151.6033562,0.00054795,120]
[322301719,1712943044790,-151.6033562,0.00054795,120]
[322301721,1712943044799,-151.6033562,0.00054795,120]
[322301723,1712943044810,-151.6033562,0.00054795,120]
[322301725,1712943044820,-151.6033562,0.00054795,120]
[322301727,1712943044830,-151.6033562,0.00054795,120]
[322301729,1712943044840,-151.6033562,0.00054795,120]
[322301731,1712943044849,-151.6033562,0.00054795,120]
[322301733,1712943044859,-151.6033562,0.00054795,120]
[322301735,1712943044868,-151.6033562,0.00054795,120]
[322301737,1712943044878,-151.6033562,0.00054795,120]
[322301738,1712943044887,-150.91093986,0.00054795,120]
[322301740,1712943044896,-151.41,0.00054795,120]
[322301742,1712943044906,-151.09843986,0.00054795,120]
[322301744,1712943044915,-151.09843986,0.00054795,120]
[322301746,1712943044925,-151.09843986,0.00054795,120]
[322301748,1712943044934,-151.09843986,0.00054795,120]
[322301750,1712943044944,-151.09843986,0.00054795,120]
[322301752,1712943044953,-151.09843986,0.00054795,120]
[322301754,1712943044963,-151.09843986,0.00054795,120]
[322301755,1712943044973,-167.67423362,0.00054795,120]
[322301757,1712943044982,-167.67423362,0.00054795,120]
[322301759,1712943044991,-167.67423362,0.00054795,120]
[322301761,1712943045001,-167.67423362,0.00054795,120]
[322301763,1712943045011,-167.67423362,0.00054795,120]
[322301765,1712943045020,-167.67423362,0.00054795,120]
[322301767,1712943045030,-167.67423362,0.00054795,120]
[322301769,1712943045039,-167.67423362,0.00054795,120]
[322301771,1712943045048,-167.67423362,0.00054795,120]
[322301773,1712943045057,-167.67423362,0.00054795,120]
[322301775,1712943045066,-167.67423362,0.00054795,120]
[322301776,1712943045076,-167.67423362,0.00054795,120]
[322301778,1712943045086,-167.67423362,0.00054795,120]
[322301780,1712943045100,-167.67423362,0.00054795,120]
[322301782,1712943045119,-167.67423362,0.00054795,120]
[322301784,1712943045128,-167.67423362,0.00054795,120]
[322301786,1712943045137,-167.67423362,0.00054795,120]
[322301788,1712943045147,-167.67423362,0.00054795,120]
[322301790,1712943045157,-167.67423362,0.00054795,120]
[322301792,1712943045166,-168.17,0.00054795,120]
[322301794,1712943045175,-670.77193449,0.00054795,120]
[322301796,1712943045184,-670.77193449,0.00054795,120]
[322301797,1712943045194,-670.77193449,0.00054795,120]
[322301799,1712943045203,-670.77193449,0.00054795,120]
[322301801,1712943045212,-670.77193449,0.00054795,120]
[322301803,1712943045221,-670.77193449,0.00054795,120]
[322301805,1712943045231,-670.77193449,0.00054795,120]
[322301807,1712943045240,-670.77193449,0.00054795,120]
[322301809,1712943045249,-670.77193449,0.00054795,120]
[322301811,1712943045259,-670.77193449,0.00054795,120]
[322301813,1712943045269,-670.77193449,0.00054795,120]
[322301815,1712943045278,-670.77193449,0.00054795,120]
[322301817,1712943045288,-670.77193449,0.00054795,120]
[322301819,1712943045297,-670.77193449,0.00054795,120]
[322301821,1712943045307,-670.77193449,0.00054795,120]
[322301823,1712943045317,-670.77193449,0.00054795,120]
[322301825,1712943045326,-670.77193449,0.00054795,120]
[322301827,1712943045335,-670.77193449,0.00054795,120]
[322301829,1712943045344,-670.77193449,0.00054795,120]
[322301831,1712943045354,-159.872775,0.00054795,2]
[322301833,1712943045363,-153.8365412,0.0005489,60]
[322301834,1712943045372,-152.1,0.000549,120]
[322301836,1712943045382,-151.59,0.000549,120]
[322301838,1712943045391,-671.27,0.000549,120]
[322301840,1712943045402,-1000.0,0.00054999,120]
[322301842,1712943045411,-71206.98266441,0.00055,120]
[322301844,1712943045420,-198.0,0.00055,120]
[322301846,1712943045429,-153.8365412,0.00055056,120]
[322301848,1712943045438,-198.0,0.00055068,120]
[322301850,1712943045447,-1799.97122019,0.000557,120]
[322301851,1712943045456,-1170.59352373,0.00055989,52]
[322301853,1712943045466,-211.784086,0.00056236,2]
[322301855,1712943045475,-157.560748,0.00056236,2]
[322301857,1712943045486,-168.645527,0.000567,2]
[322301859,1712943045496,-318.22520126,0.00056712,120]
[322301861,1712943045508,-454.42818156,0.00056712,120]
[322301863,1712943045517,-500.0,0.00056712,120]
[322301865,1712943045526,-500.0,0.00056712,120]
[322301867,1712943045536,-807.3,0.00056712,120]
[322301869,1712943045548,-347.84297722,0.00056712,120]
[322301871,1712943045558,-500.0,0.00056712,120]
[322301875,1712943045567,-500.0,0.00056712,120]
[322301876,1712943045647,-500.0,0.00056712,120]
[322301877,1712943045659,-506.0829126,0.00056712,120]
[322301878,1712943045669,-500.0,0.00056712,120]
[322301879,1712943045680,-504.97991679,0.00056712,120]
[322301880,1712943045691,-500.0,0.00056712,120]
[322301881,1712943045701,-417.90975819,0.00056712,120]
[322301882,1712943045711,-300.0,0.00056712,7]
[322301884,1712943045722,-500.0,0.00056712,120]
[322301885,1712943045732,-500.0,0.00056712,120]
[322301887,1712943045742,-500.0,0.00056712,120]
[322301889,1712943045752,-500.13092571,0.00056712,120]
[322301891,1712943045762,-500.0,0.00056712,120]
[322301893,1712943045773,-500.0,0.00056712,120]
[322301895,1712943045782,-500.0,0.00056712,120]
[322301897,1712943045792,-500.0,0.00056712,120]
[322301899,1712943045802,-500.0,0.00056712,120]
[322301901,1712943045812,-500.0,0.00056712,120]
[322301903,1712943045822,-2834.4,0.00056712,120]
[322301905,1712943045832,-500.0,0.00056712,120]
[322301907,1712943045843,-500.0,0.00056712,120]
[322301909,1712943045853,-500.0,0.00056712,120]
[322301911,1712943045863,-500.0,0.00056712,120]
[322301913,1712943045873,-500.0,0.00056712,120]
[322301915,1712943045883,-422.80300729,0.00056712,120]
[322301917,1712943045893,-500.0,0.00056712,120]
[322301919,1712943045903,-500.0,0.00056712,120]
[322301921,1712943045913,-500.0,0.00056712,120]
[322301923,1712943045922,-500.0,0.00056712,120]
[322301926,1712943045932,-500.0,0.00056712,120]
[322301930,1712943045949,-500.0,0.00056712,120]
[322301935,1712943045966,-500.0,0.00056712,120]
[322301938,1712943045976,-524.37,0.00056712,120]
[322301941,1712943045986,-500.0,0.00056712,120]
[322301945,1712943045996,-500.0,0.00056712,120]
[322301949,1712943046006,-698.34,0.00056712,120]
[322301952,1712943046016,-500.0,0.00056712,120]
[322301956,1712943046026,-500.0,0.00056712,120]
[322301960,1712943046036,-500.0,0.00056712,120]
[322301964,1712943046045,-500.0,0.00056712,120]
[322301969,1712943046056,-500.0,0.00056712,120]
[322301973,1712943046066,-436.50670645,0.00056712,120]
[322301976,1712943046077,-500.0,0.00056712,120]
[322301980,1712943046087,-853.55,0.00056712,120]
[322301983,1712943046115,-500.0,0.00056712,120]
[322301986,1712943046126,-500.0,0.00056712,120]
[322301989,1712943046137,-500.0,0.00056712,120]
[322301997,1712943046147,-500.0,0.00056712,120]
[322302004,1712943046158,-500.0,0.00056712,120]
[322302010,1712943046167,-500.0,0.00056712,120]
[322302018,1712943046177,-574.20450814,0.00056712,120]
[322302026,1712943046187,-500.0,0.00056712,120]
[322302033,1712943046198,-500.0,0.00056712,120]
[322302040,1712943046207,-500.0,0.00056712,120]
[322302047,1712943046217,-500.0,0.00056712,120]
[322302053,1712943046226,-190.64638675,0.00056712,120]
[322302059,1712943046237,-500.0,0.00056712,120]
[322302065,1712943046247,-500.0,0.00056712,120]
[322302073,1712943046258,-500.0,0.00056712,120]
[322302080,1712943046268,-500.0,0.00056712,120]
[322302086,1712943046278,-500.0,0.00056712,120]
[322302092,1712943046288,-2334.48,0.00056712,120]
[322302097,1712943046298,-1223.88,0.00056712,120]
[322302104,1712943046309,-500.80320733,0.00056712,120]
[322302110,1712943046319,-1875.18,0.00056712,120]
[322302117,1712943046329,-500.0,0.00056712,120]
[322302123,1712943046338,-500.0,0.00056712,120]
[322302128,1712943046348,-500.0,0.00056712,120]
[322302134,1712943046357,-500.0,0.00056712,120]
[322302139,1712943046367,-1071.24,0.00056712,120]
[322302144,1712943046376,-500.0,0.00056712,120]
[322302151,1712943046387,-500.0,0.00056712,120]
[322302156,1712943046397,-500.0,0.00056712,120]
[322302161,1712943046407,-1236.65,0.00056712,120]
[322302167,1712943046417,-500.0,0.00056712,120]
[322302173,1712943046428,-500.0,0.00056712,120]
[322302180,1712943046438,-736.04,0.00056712,120]
[322302185,1712943046448,-500.0,0.00056712,120]
[322302191,1712943046458,-500.0,0.00056712,120]
[322302195,1712943046467,-500.0,0.00056712,120]
[322302200,1712943046477,-500.0,0.00056712,120]
[322302206,1712943046486,-823.7,0.00056712,120]
[322302209,1712943046498,-500.0,0.00056712,120]
[322302214,1712943046512,-500.0,0.00056712,120]
[322302218,1712943046522,-500.0,0.00056712,120]
[322302222,1712943046531,-500.0,0.00056712,120]
[322302226,1712943046540,-1000.0,0.00056712,7]
[322302229,1712943046552,-500.0,0.00056712,120]
[322302234,1712943046562,-1374.44,0.00056712,120]
[322302237,1712943046572,-500.0,0.00056712,120]
[322302241,1712943046582,-1051.77,0.00056712,120]
[322302244,1712943046594,-500.0,0.00056712,120]
[322302247,1712943046620,-500.0,0.00056712,120]
[322302251,1712943046629,-513.4,0.00056712,120]
[322302255,1712943046639,-500.0,0.00056712,120]
[322302259,1712943046649,-2373.58,0.00056712,21]
[322302263,1712943046659,-500.0,0.00056712,120]
[322302267,1712943046669,-500.0,0.00056712,120]
[322302271,1712943046678,-500.0,0.00056712,120]
[322302275,1712943046688,-404.421255,0.00056712,120]
[322302279,1712943046698,-500.0,0.00056712,120]
[322302283,1712943046708,-3617.4,0.00056712,120]
[322302287,1712943046719,-2158.25,0.00056712,120]
[322302290,1712943046730,-422.97323723,0.00056712,120]
[322302294,1712943046740,-500.0,0.00056712,120]
[322302298,1712943046750,-781.82,0.00056712,120]
[322302302,1712943046760,-2001.96,0.00056712,120]
[322302306,1712943046770,-905.53,0.00056712,120]
[322302309,1712943046780,-288.52461699,0.00056712,120]
[322302313,1712943046790,-500.0,0.00056712,120]
[322302317,1712943046801,-1904.01,0.00056712,120]
[322302322,1712943046811,-500.0,0.00056712,120]
[322302326,1712943046822,-920.85,0.00056712,120]
[322302329,1712943046832,-500.0,0.00056712,120]
[322302332,1712943046842,-511.0474743,0.00056712,120]
[322302335,1712943046852,-615.32305045,0.00056712,120]
[322302338,1712943046863,-500.0,0.00056712,120]
[322302342,1712943046873,-500.0,0.00056712,120]
[322302346,1712943046884,-1828.37,0.00056712,120]
[322302350,1712943046893,-295.04346083,0.00056712,120]
[322302352,1712943046903,-500.0,0.00056712,60]
[322302356,1712943046913,-500.0,0.00056712,120]
[322302361,1712943046923,-881.01,0.00056712,120]
[322302365,1712943046933,-500.0,0.00056712,120]
[322302369,1712943046943,-914.42,0.00056712,120]
[322302374,1712943046953,-500.0,0.00056712,120]
[322302378,1712943046964,-500.0,0.00056712,120]
[322302382,1712943046974,-500.0,0.00056712,120]
[322302386,1712943046984,-1452.4,0.00056712,120]
[322302389,1712943046994,-500.0,0.00056712,120]
[322302393,1712943047004,-4993.46,0.00056712,120]
[322302398,1712943047014,-500.0,0.00056712,120]
[322302402,1712943047024,-513.31933967,0.00056712,120]
[322302406,1712943047034,-500.0,0.00056712,120]
[322302410,1712943047044,-500.0,0.00056712,120]
[322302414,1712943047053,-638.85,0.00056712,120]
[322302418,1712943047063,-500.0,0.00056712,120]
[322302421,1712943047072,-500.0,0.00056712,120]
[322302425,1712943047081,-527.88170902,0.00056712,120]
[322302428,1712943047090,-500.0,0.00056712,120]
[322302433,1712943047109,-1770.86,0.00056712,120]
[322302437,1712943047123,-500.0,0.00056712,120]
[322302439,1712943047132,-832.37,0.00056712,120]
[322302443,1712943047142,-500.0,0.00056712,120]
[322302446,1712943047152,-500.0,0.00056712,120]
[322302449,1712943047161,-500.0,0.00056712,120]
[322302453,1712943047171,-500.0,0.00056712,120]
[322302457,1712943047180,-500.0,0.00056712,120]
[322302461,1712943047189,-637.09408538,0.00056712,120]
[322302465,1712943047199,-550.9,0.00056712,120]
[322302469,1712943047208,-500.0,0.00056712,120]
[322302472,1712943047218,-500.0,0.00056712,120]
[322302476,1712943047227,-500.0,0.00056712,120]
[322302478,1712943047237,-500.0,0.00056712,120]
[322302480,1712943047247,-500.0,0.00056712,120]
[322302482,1712943047257,-500.0,0.00056712,120]
[322302484,1712943047267,-1157.48,0.00056712,120]
[322302486,1712943047276,-500.0,0.00056712,120]
[322302488,1712943047286,-921.83,0.00056712,120]
[322302490,1712943047295,-11269.9,0.00056712,120]
[322302492,1712943047305,-500.0,0.00056712,120]
[322302493,1712943047314,-500.0,0.00056712,120]
[322302495,1712943047323,-500.0,0.00056712,120]
[322302496,1712943047334,-54697.93,0.00056712,120]
[322302497,1712943047344,-508.37236142,0.00056712,120]
[322302498,1712943047354,-153.8365412,0.00056765,120]
[322302499,1712943047364,-1760.83336052,0.00057,120]
[322302500,1712943047374,-1307.0,0.000574,120]
[322302501,1712943047384,-198.0,0.00057534,120]
[322302502,1712943047393,-153.8365412,0.00058091,120]
[322302503,1712943047484,-500.0,0.00058118,49]
[322302504,1712943047495,-3260.88129171,0.00058628,4]
[322302505,1712943047508,-303.88814684,0.00058628,4]
[322302506,1712943047517,-500.0,0.0005863,120]
[322302507,1712943047526,-500.0,0.0005863,120]
[322302508,1712943047536,-807.3,0.0005863,120]
[322302509,1712943047548,-500.0,0.0005863,120]
[322302510,1712943047557,-500.0,0.0005863,120]
[322302511,1712943047566,-500.0,0.0005863,120]
[322302512,1712943047576,-500.0,0.0005863,120]
[322302513,1712943047588,-300.0,0.0005863,7]
[322302514,1712943047603,-500.0,0.0005863,120]
[322302515,1712943047622,-500.0,0.0005863,120]
[322302516,1712943047632,-357.0585463,0.0005863,120]
[322302517,1712943047642,-283.20543271,0.0005863,120]
[322302518,1712943047652,-500.0,0.0005863,120]
[322302519,1712943047662,-500.0,0.0005863,120]
[322302520,1712943047672,-342.2568,0.0005863,120]
[322302521,1712943047681,-500.0,0.0005863,120]
[322302522,1712943047691,-2834.4,0.0005863,120]
[322302523,1712943047701,-500.0,0.0005863,120]
[322302524,1712943047711,-500.0,0.0005863,120]
[322302525,1712943047721,-500.0,0.0005863,120]
[322302526,1712943047731,-500.0,0.0005863,120]
[322302527,1712943047740,-500.0,0.0005863,120]
[322302528,1712943047750,-500.0,0.0005863,120]
[322302529,1712943047760,-500.0,0.0005863,120]
[322302530,1712943047770,-500.0,0.0005863,120]
[322302531,1712943047779,-500.0,0.0005863,120]
[322302532,1712943047789,-500.0,0.0005863,120]
[322302533,1712943047799,-524.37,0.0005863,120]
[322302534,1712943047809,-500.0,0.0005863,120]
[322302535,1712943047819,-500.0,0.0005863,120]
[322302536,1712943047830,-698.34,0.0005863,120]
[322302537,1712943047840,-500.0,0.0005863,120]
[322302538,1712943047850,-500.0,0.0005863,120]
[322302539,1712943047859,-500.0,0.0005863,120]
[322302540,1712943047869,-500.0,0.0005863,120]
[322302541,1712943047879,-853.55,0.0005863,120]
[322302542,1712943047889,-500.0,0.0005863,120]
[322302543,1712943047899,-500.0,0.0005863,120]
[322302544,1712943047909,-500.0,0.0005863,120]
[322302545,1712943047918,-500.0,0.0005863,120]
[322302546,1712943047928,-579.18041709,0.0005863,120]
[322302547,1712943047937,-500.0,0.0005863,120]
[322302548,1712943047947,-500.0,0.0005863,120]
[322302549,1712943047957,-500.0,0.0005863,120]
[322302550,1712943047967,-500.0,0.0005863,120]
[322302553,1712943047980,-500.0,0.0005863,120]
[322302555,1712943047991,-500.0,0.0005863,120]
[322302557,1712943048001,-500.0,0.0005863,120]
[322302559,1712943048011,-500.0,0.0005863,120]
[322302561,1712943048020,-168.03209167,0.0005863,120]
[322302563,1712943048030,-2334.48,0.0005863,120]
[322302566,1712943048039,-1223.88,0.0005863,120]
[322302569,1712943048049,-1875.18,0.0005863,120]
[322302572,1712943048059,-500.0,0.0005863,120]
[322302575,1712943048068,-500.0,0.0005863,120]
[322302578,1712943048078,-500.0,0.0005863,120]
[322302581,1712943048088,-500.0,0.0005863,120]
[322302584,1712943048097,-1071.24,0.0005863,120]
[322302587,1712943048122,-520.74136323,0.0005863,120]
[322302590,1712943048132,-500.0,0.0005863,120]
[322302594,1712943048142,-1236.65,0.0005863,120]